[Event "13th Palmanova Festival A 2024"]
[Site "Palmanova"]
[Date "2025.01.02"]
[Round "8.1"]
[White "Martinovici, Ilia"]
[Black "Dobrovoljc, Vid"]
[Result "0-1"]
[ECO "D85"]
[WhiteElo "2473"]
[BlackElo "2365"]
[Annotator "TA"]
[PlyCount "54"]
[EventDate "2024.12.27"]
[EventCountry "ITA"]
[SourceTitle "playchess.com"]
[Source "ChessBase"]
[SourceQuality "1"]
[TimeControl "6000+30"]

{[%evp 15,54,0,5,-55,12,-87,-62,-144,-134,-169,-162,-202,-181,-194,-196,-138,-195,-157,-106,-150,-45,-46,-36,-47,-41,-40,-40,-62,-2,-443,-443,-510,-515,-515,-510,-520,-520,-505,-475,-733,-753]} 1. d4 {[%emt 0:02:36]} Nf6 {[%emt 0:05:44]} 2. c4 {[%emt 0:00:08]} g6 {[%emt 0:00:12]} 3. Nc3 {[%emt 0:00:05]} d5 {[%emt 0:00:04]} 4. cxd5 {[%emt 0:00:54]} Nxd5 {[%emt 0:00:37]} 5. e4 {[%emt 0:02:34]} Nxc3 {[%emt 0:00:45]} 6. bxc3 {[%emt 0:00:02]} Bg7 {[%emt 0:00:10]} 7. Nf3 {[%emt 0:01:19]} c5 {[%emt 0:00:28]} 8. Bb5+ {[%emt 0:01:48]} Nc6 {[%emt 0:00:56]} 9. Ne5 {[%emt 0:18:37]} (9. dxc5 Bxc3+ 10. Bd2 Bxa1 11. Qxa1 f6 $15) (9. Bxc6+ $11 bxc6 10. Qa4) 9... Qa5 {[%emt 0:22:36]} (9... O-O $1 $15 10. Bxc6 (10. Nxc6 bxc6 11. Bxc6 Rb8 $17) 10... bxc6) 10. Qb3 {[%emt 0:13:30]} (10. Bxc6+ $11 bxc6 11. O-O) 10... O-O $1 $17 {[%emt 0:03:02]} 11. Bxc6 {[%emt 0:17:29] [#]} (11. Nxc6 $15 bxc6 12. Bxc6) 11... cxd4 $1 {[%emt 0:16:56]} 12. Nxf7 {[%emt 0:04:31]} (12. Bxb7 $2 Bxb7 (12... Qxc3+ $2 13. Qxc3 dxc3 14. Bxa8 $18) 13. O-O Ba6 (13... Bxe4 14. cxd4 Rad8 15. Bb2 $17) (13... Qxc3 $2 14. Bf4 $19) (13... Bxe5 $2 14. Qxb7 dxc3 15. Bh6 $19) (13... dxc3 14. Nxf7 Rxf7 15. Qxb7 $17) 14. cxd4 Bxf1 $19 (14... Bxe5 $2 15. dxe5 Bxf1 16. e6 $19)) 12... Rxf7 {[%emt 0:00:07]} (12... bxc6 13. Nh6+ Kh8 14. Qg8+ Rxg8 15. Nf7#) 13. Be8 {[%emt 0:01:59] [#]} Be6 $1 {[%emt 0:04:56]} 14. Qa3 {[%emt 0:03:24]} Qxc3+ {[%emt 0:02:56]} 15. Qxc3 {[%emt 0:00:04]} dxc3 {[%emt 0:00:03]} 16. Bxf7+ {[%emt 0:00:04]} Bxf7 {[%emt 0:03:49]} (16... Kxf7 $142 17. Be3 Rc8) 17. Be3 {[%emt 0:06:15]} Rc8 {[%emt 0:02:33] Black is more active.} (17... a5 $17 {White must now prevent ...b5.} 18. Rb1 Rb8) 18. O-O-O $1 $15 {[%emt 0:07:36]} b5 {[%emt 0:06:30][%cal Bb7b5,Bb5b4][%mdl 1056] Black has compensation.} 19. Rd7 {[%emt 0:19:07]} a5 {[%emt 0:05:32]} 20. Kc2 $1 {[%emt 0:00:42]} b4 $36 {[%emt 0:06:42][%mdl 2048] White is under pressure.} 21. Ra1 $1 {[%emt 0:00:17][%cal Od7a7]} Rb8 {[%emt 0:18:24]} ({Better is} 21... Be8 $15 22. Rd5 (22. Rxe7 Ba4+ 23. Kd3 c2 $17) 22... Bc6 23. Rxa5 Bxe4+ 24. Kb3 Bxg2) 22. f4 $2 {[%emt 0:04:25][%mdl 8192] [#]} (22. Ba7 $11 Rc8 23. Be3) 22... Bxa2 $1 $19 {[%emt 0:01:44]} 23. Rxa2 {[%emt 0:01:30][%cal Oc2b3] And now Kb3! would win.} (23. e5 b3+) 23... b3+ {[%emt 0:00:06]} 24. Kb1 {[%emt 0:00:01]} bxa2+ {[%emt 0:00:31]} 25. Kxa2 {[%emt 0:00:01]} Rb2+ {[%emt 0:00:15]} 26. Ka3 {[%emt 0:00:04]} Re2 {[%emt 0:00:19]} 27. Rd3 {[%emt 0:00:24]} (27. Bd4 $142 Bxd4 (27... Rxe4 $2 28. Bxg7 Kxg7 29. Kb3 $19) 28. Rxd4) 27... c2 {[%emt 0:00:38]} 0-1

[Event "13th Palmanova Festival A 2024"]
[Site "Palmanova"]
[Date "2025.01.02"]
[Round "8.2"]
[White "Zamengo, Fulvio"]
[Black "Lumachi, Gabriele"]
[Result "1/2-1/2"]
[ECO "C24"]
[WhiteElo "2348"]
[BlackElo "2438"]
[Annotator "TA"]
[PlyCount "67"]
[EventDate "2024.12.27"]
[EventCountry "ITA"]
[SourceTitle "playchess.com"]
[Source "ChessBase"]
[SourceQuality "1"]
[TimeControl "6000+30"]

{[%evp 9,67,0,26,27,24,22,17,0,11,-3,24,26,33,1,0,-4,0,-6,4,0,15,0,6,13,37,26,31,-8,28,45,31,20,24,0,0,0,0,0,0,0,0,0,0,0,0,0,0,0,0,0,0,0,0,0,0,0,0,0,0,0]} 1. e4 {[%emt 0:01:44]} e5 {[%emt 0:00:08]} 2. Bc4 {[%emt 0:00:54]} Nf6 {[%emt 0:00:33]} 3. d3 {[%emt 0:00:06]} c6 {[%emt 0:00:06]} 4. Nf3 {[%emt 0:00:22]} d5 {[%emt 0:00:07]} 5. Bb3 {[%emt 0:01:41]} a5 {[%emt 1:42:06] Hoping for ...a4.} 6. a4 {[%emt 0:06:32]} Bb4+ {[%emt 0:00:00]} 7. c3 {[%emt 0:04:15]} Bd6 {[%emt 0:00:00]} 8. O-O {[%emt 0:02:16]} O-O {[%emt 0:00:00]} 9. Bg5 {[%emt 0:08:14]} Be6 {[%emt 0:00:00]} 10. Nbd2 {[%emt 0:04:10]} Nbd7 {[%emt 0:00:00]} 11. Re1 {[%emt 0:02:38]} Qc7 {[%emt 0:00:00]} 12. h3 {[%emt 0:11:15]} h6 {[%emt 0:00:00]} 13. Bh4 {[%emt 0:00:48]} Rae8 {[%emt 0:00:00]} 14. Bg3 {[%emt 0:01:54]} g6 {[%emt 0:00:00]} 15. d4 {[%emt 0:17:35]} dxe4 {[%emt 0:00:00]} 16. Bxe6 {[%emt 0:03:56]} exf3 {[%emt 0:00:00]} 17. Bxd7 {[%emt 0:00:50]} Nxd7 {[%emt 0:00:00]} 18. Nxf3 {[%emt 0:02:22]} e4 {[%emt 0:00:00]} 19. Bxd6 {[%emt 0:00:15]} Qxd6 {[%emt 0:00:00]} 20. Nd2 {[%emt 0:00:08]} Qd5 {[%emt 0:00:00]} 21. c4 {[%emt 0:08:15]} Qxd4 {[%emt 0:00:00]} 22. Nxe4 $1 {[%emt 0:00:07]} Rxe4 {[%emt 0:00:00]} 23. Rxe4 {[%emt 0:00:05]} Qxe4 {[%emt 0:00:00]} 24. Qxd7 {[%emt 0:00:06]} Qxc4 {[%emt 0:00:00]} 25. Qxb7 $11 {[%emt 0:00:08][%mdl 4096] Endgame KQR-KQR} Re8 {[%emt 0:00:00]} 26. Qb6 {[%emt 0:00:07]} Re2 {[%emt 0:00:00]} 27. Qxa5 {[%emt 0:01:58]} Qd4 {[%emt 0:00:00] Inhibits Qb6.} 28. Qa8+ {[%emt 0:07:27]} Kg7 {[%emt 0:00:00]} 29. Qxc6 {[%emt 0:00:09] And now Qc3 would win.} Qxb2 {[%emt 0:00:00]} 30. Rf1 {[%emt 0:02:29]} Qb4 {[%emt 0:00:00] Against Qc4} 31. f4 {[%emt 0:05:12]} Qd4+ {[%emt 0:00:00]} 32. Kh1 {[%emt 0:01:22]} Ra2 {[%emt 0:00:00]} 33. f5 {[%emt 0:01:48]} gxf5 {[%emt 0:00:00]} 34. Qf3 {[%emt 0:03:18]} 1/2-1/2

[Event "13th Palmanova Festival A 2024"]
[Site "Palmanova"]
[Date "2025.01.02"]
[Round "8.3"]
[White "Di Benedetto, Edoardo"]
[Black "Bettalli, Francesco"]
[Result "0-1"]
[ECO "D79"]
[WhiteElo "2411"]
[BlackElo "2359"]
[Annotator "TA"]
[PlyCount "78"]
[EventDate "2024.12.27"]
[EventCountry "ITA"]
[SourceTitle "playchess.com"]
[Source "ChessBase"]
[SourceQuality "1"]
[TimeControl "6000+30"]

{[%evp 18,78,9,17,40,31,41,29,23,25,61,28,23,7,16,7,6,0,6,0,0,0,29,0,292,202,227,211,219,201,197,147,159,158,156,175,169,164,328,118,340,340,293,120,120,92,89,81,75,60,63,31,31,31,30,-89,-85,-276,-276,-328,-313,-911,-908]} 1. Nf3 {[%emt 0:01:27]} g6 {[%emt 0:00:38]} 2. d4 {[%emt 0:03:52]} Nf6 {[%emt 0:00:06]} 3. g3 {[%emt 0:00:39]} Bg7 {[%emt 0:00:09]} 4. Bg2 {[%emt 0:00:14]} O-O {[%emt 0:00:19]} 5. O-O {[%emt 0:00:06]} d5 {[%emt 0:03:33]} 6. c4 {[%emt 0:01:40]} c6 {[%emt 0:00:49][%cal Bc7c6,Bc6d5][%mdl 32]} 7. cxd5 {[%emt 0:00:18]} cxd5 {[%emt 0:00:05]} 8. Nc3 {[%emt 0:00:04]} Ne4 {[%emt 0:00:21]} 9. Ne5 {[%emt 0:06:10]} Nxc3 {[%emt 0:05:56]} 10. bxc3 {[%emt 0:00:02]} Qa5 {[%emt 0:00:16][%cal Ob8c6]} 11. Qb3 {[%emt 0:11:44]} Nc6 {[%emt 0:03:29]} 12. Bxd5 {[%emt 0:03:14]} Nxe5 {[%emt 0:00:39] White has an edge.} 13. dxe5 {[%emt 0:00:05]} Bh3 {[%emt 0:03:48]} 14. Rd1 {[%emt 0:05:52]} (14. e6 $5) 14... e6 {[%emt 0:01:02]} 15. Bf3 {[%emt 0:12:55]} Bxe5 {[%emt 0:02:16]} 16. Bh6 {[%emt 0:08:16]} Rfd8 {[%emt 0:02:00]} 17. Qxb7 {[%emt 0:25:52]} (17. Bg5 {simplifies} Re8 18. Be3 Bxc3 19. Rac1) 17... Rab8 {[%emt 0:10:08]} 18. Qe7 {[%emt 0:01:15] Strongly threatening Qh4.} Bxc3 {[%emt 0:01:58]} 19. Rac1 {[%emt 0:02:09]} Rxd1+ {[%emt 0:12:59]} 20. Rxd1 {[%emt 0:00:07] Black must now prevent Qh4.} Bd2 $2 {[%emt 0:00:15][%mdl 8192]} 21. e3 $1 $18 {[%emt 0:12:09]} (21. Bxd2 Qxd2 22. e3 Qa5 $11 (22... Qxa2 $2 23. Qh4 $16)) 21... Bf5 {[%emt 0:02:12][%cal Of5c2]} 22. Kg2 $1 {[%emt 0:01:11]} Bd3 {[%emt 0:02:23]} 23. Bf4 {[%emt 0:03:33]} Rc8 {[%emt 0:09:05][%cal Od3c2]} 24. Qb7 {[%emt 0:05:48]} ({White should try} 24. Qd7 $18 Rd8 25. Qb7) 24... Ba6 $16 {[%emt 0:01:11]} 25. Qd7 {[%emt 0:00:45]} (25. Qxa7 $2 Bf1+ (25... Qxa2 26. Qb6 $14) 26. Kxf1 Qxa7 $19) 25... Bc3 {[%emt 0:02:20]} 26. Bb7 {[%emt 0:00:46]} (26. Qxa7 $2 Bf1+ (26... Qxa2 27. Qe7 $11) 27. Rxf1 Qxa7 $19) 26... Bxb7+ {[%emt 0:01:16]} 27. Qxb7 {[%emt 0:00:02]} Rf8 {[%emt 0:01:14] [#]} (27... Qc5 {was worth a try.} 28. Rd7 Qc6+ 29. Qxc6 Rxc6) 28. Rd7 $2 {[%emt 0:00:44]} (28. Bd6 $1 $18 {[%cal Rd6f8] and the rest is easy.} Bg7 29. Bxf8 Bxf8 30. Rd7 Qxa2 31. Rxf7 (31. Qxa7 Qxa7 32. Rxa7 Kg7 $18)) 28... Qf5 $2 {[%emt 0:03:31] [#]} (28... Be5 $16) 29. e4 $1 $18 {[%emt 0:00:55]} (29. Qxa7 Qe4+ 30. Kh3 Qf3 $11) 29... Qf6 {[%emt 0:01:36]} 30. Qxa7 {[%emt 0:01:26]} (30. Bd6 $18 {and White stays clearly on top.} Be1 31. Qxa7) 30... g5 $16 {[%emt 0:01:18]} 31. Bc1 {[%emt 0:00:51]} g4 {[%emt 0:01:28]} 32. Qe3 {[%emt 0:00:33] Repels Qf3+} Ra8 {[%emt 0:01:19]} 33. Qe2 {[%emt 0:00:43]} h5 {[%emt 0:00:58]} 34. Bf4 {[%emt 0:01:03]} e5 {[%emt 0:09:18]} 35. Be3 {[%emt 0:00:41]} Ra4 {[%emt 0:00:30]} 36. Bd2 {[%emt 0:00:45]} (36. Kg1 $11) 36... Rxa2 $17 {[%emt 0:00:23]} 37. Kf1 $2 {[%emt 0:00:24]} (37. Bg5 $17 Rxe2 38. Bxf6) 37... Bd4 $19 {[%emt 0:04:01] Threatens to win with ...Qb6.} 38. Rc7 {[%emt 0:00:12] [#]} Bxf2 $1 {[%emt 0:02:47][%mdl 512] ( -> ...Bc5+)} 39. Bg5 $2 {[%emt 0:00:35]} (39. Rc8+ Kh7 40. Qxf2 Qxf2+ 41. Kxf2 Rxd2+ 42. Kg1) (39. Qxf2 Qxf2+) 39... Ra1+ {[%emt 0:00:29] Weighted Error Value: White=0.52/Black=0.29 (precise) .  Loses game:     	White=1     	Black=2      Missed win:     	White=2     	---        Mistake:       	White=3     	Black=1      Inaccurate:     	White=3     	Black=1      OK:         	White=5     	Black=16     Best:        	---       	Black=5      Strong:       	White=3     	---        Brilliant:      	---       	Black=1} (39... Qxg5 $2 {perishes.} 40. Qxa2 Qg6 41. Qxf2 $18 (41. Kxf2 Qb6+ 42. Ke2 Qxc7 $17)) (39... Rxe2 40. Rc8+ (40. Bxf6 Ra2 $11) 40... Kh7 41. Bxf6 $11) 0-1

[Event "13th Palmanova Festival A 2024"]
[Site "Palmanova"]
[Date "2025.01.02"]
[Round "8.4"]
[White "Pegno, Mattia"]
[Black "Hovhannisyan, Mher"]
[Result "0-1"]
[ECO "D30"]
[WhiteElo "2243"]
[BlackElo "2397"]
[Annotator "RC"]
[PlyCount "108"]
[EventDate "2024.12.27"]
[EventCountry "ITA"]
[SourceTitle "playchess.com"]
[Source "ChessBase"]
[SourceQuality "1"]
[TimeControl "6000+30"]

1. d4 {[%emt 0:12:26]} d5 {[%emt 0:00:05]} 2. c4 {[%emt 0:00:05]} e6 {[%emt 0:00:16]} 3. Nf3 {[%emt 0:00:05]} c5 {[%emt 0:01:40]} 4. cxd5 {[%emt 0:00:07]} exd5 {[%emt 0:00:22]} 5. Bg5 {[%emt 0:00:08]} f6 {[%emt 0:01:14]} 6. Bf4 {[%emt 0:00:06]} Nc6 {[%emt 0:03:01]} 7. dxc5 {[%emt 0:00:17]} Bxc5 {[%emt 0:00:52]} 8. e3 {[%emt 0:00:06]} Nge7 {[%emt 0:02:27]} 9. Nc3 {[%emt 0:00:06]} O-O {[%emt 0:05:04]} 10. Bd3 {[%emt 0:00:16]} Kh8 {[%emt 0:08:42]} 11. O-O {[%emt 0:01:18]} Bg4 {[%emt 0:07:21]} 12. Rc1 {[%emt 0:06:36]} d4 {[%emt 0:04:34]} 13. Nb5 {[%emt 0:19:30]} Bb6 {[%emt 0:01:17]} 14. h3 {[%emt 0:24:46]} Bxf3 {[%emt 0:07:54]} 15. Qxf3 {[%emt 0:06:38]} dxe3 {[%emt 0:00:16]} 16. Rfd1 {[%emt 0:01:07]} exf2+ {[%emt 0:00:20]} 17. Kf1 {[%emt 0:02:09]} Qd5 {[%emt 0:12:26]} 18. Qe2 {[%emt 0:11:10]} Nf5 {[%emt 0:31:46]} 19. Bc4 {[%emt 0:16:52]} Qc5 {[%emt 0:00:32]} 20. Bd3 {[%emt 0:00:22]} Ne3+ {[%emt 0:01:10]} 21. Bxe3 {[%emt 0:00:09]} Qxe3 {[%emt 0:00:04]} 22. Qh5 {[%emt 0:00:26]} Qh6 {[%emt 0:03:58]} 23. Qxh6 {[%emt 0:00:22]} gxh6 {[%emt 0:00:01]} 24. Be4 {[%emt 0:00:44]} Rae8 {[%emt 0:12:34]} 25. Nd6 {[%emt 0:01:22]} Re7 {[%emt 0:00:31]} 26. Bxc6 {[%emt 0:01:30]} bxc6 {[%emt 0:00:02]} 27. Nc4 {[%emt 0:00:54]} Bc5 {[%emt 0:04:38]} 28. a3 {[%emt 0:01:00]} a6 {[%emt 0:00:30]} 29. b4 {[%emt 0:01:14]} Ba7 {[%emt 0:00:01]} 30. Na5 {[%emt 0:00:18]} Rc8 {[%emt 0:00:59]} 31. Nxc6 {[%emt 0:01:38]} Rec7 {[%emt 0:00:36]} 32. Rd6 {[%emt 0:00:01]} Be3 {[%emt 0:00:31]} 33. Rc2 {[%emt 0:01:20]} Kg7 {[%emt 0:00:14]} 34. a4 {[%emt 0:00:14]} f5 {[%emt 0:00:45]} 35. g3 {[%emt 0:00:40]} Re8 {[%emt 0:00:33]} 36. Re2 {[%emt 0:00:33]} Re4 {[%emt 0:00:11]} 37. b5 {[%emt 0:00:44]} axb5 {[%emt 0:01:33]} 38. axb5 {[%emt 0:00:09]} Bc5 {[%emt 0:00:00]} 39. Rd1 {[%emt 0:01:43]} Rxe2 {[%emt 0:00:21]} 40. Kxe2 {[%emt 0:00:03]} Rb7 {[%emt 0:00:29]} 41. Rb1 {[%emt 0:00:00]} Bb6 {[%emt 0:00:00]} 42. Rd1 {[%emt 0:00:00]} Rc7 {[%emt 0:00:00]} 43. Ne5 {[%emt 0:00:00]} Rc2+ {[%emt 0:00:00]} 44. Kf1 {[%emt 0:00:00]} Bc7 {[%emt 0:00:00]} 45. Nd3 {[%emt 0:01:52]} Bxg3 {[%emt 0:00:00]} 46. Rb1 {[%emt 0:01:14]} Rd2 {[%emt 0:00:00]} 47. Nb4 {[%emt 0:01:01]} Bc7 {[%emt 0:00:00]} 48. Nc6 {[%emt 0:00:12]} Bb6 {[%emt 0:00:00]} 49. Ne5 {[%emt 0:00:31]} Rd4 {[%emt 0:00:00]} 50. Rc1 {[%emt 0:00:44]} Rb4 {[%emt 0:00:00]} 51. Nd7 {[%emt 0:00:22]} Be3 {[%emt 0:00:00]} 52. Rd1 {[%emt 0:00:36]} Rxb5 {[%emt 0:00:00]} 53. Ke2 {[%emt 0:00:14]} f4 {[%emt 0:00:00]} 54. Kf3 {[%emt 0:00:53]} Rd5 {[%emt 0:00:00]} 0-1

[Event "13th Palmanova Festival A 2024"]
[Site "Palmanova"]
[Date "2025.01.02"]
[Round "8.5"]
[White "Domalchuk-Jonasson, Aleksandr"]
[Black "Skrbec, Leon"]
[Result "1-0"]
[ECO "E17"]
[WhiteElo "2377"]
[BlackElo "2265"]
[Annotator "TA"]
[PlyCount "79"]
[EventDate "2024.12.27"]
[EventCountry "ITA"]
[SourceTitle "playchess.com"]
[Source "ChessBase"]
[SourceQuality "1"]
[TimeControl "6000+30"]

{[%evp 11,79,19,18,-6,26,19,18,16,20,28,22,-10,16,-12,0,0,12,7,17,21,31,0,9,0,2,-8,0,-55,-55,-55,-45,-37,-38,-66,-32,-42,0,0,0,-3,4,0,28,15,35,35,31,30,64,67,68,70,84,71,85,83,310,321,311,274,483,345,326,297,614,613,923,908,844,590]} 1. d4 {[%emt 0:01:40]} Nf6 {[%emt 0:00:29]} 2. c4 {[%emt 0:00:09]} e6 {[%emt 0:00:07]} 3. Nf3 {[%emt 0:00:43]} b6 {[%emt 0:00:47]} 4. g3 {[%emt 0:00:24]} Bb7 {[%emt 0:00:56]} 5. Bg2 {[%emt 0:00:05]} Be7 {[%emt 0:00:11]} 6. O-O {[%emt 0:00:06]} O-O {[%emt 0:01:42]} 7. h4 {[%emt 0:00:13]} d5 {[%emt 0:02:07]} 8. cxd5 {[%emt 0:00:10]} exd5 {[%emt 0:00:52]} 9. Nc3 {[%emt 0:00:08] The position is equal.} Nbd7 {[%emt 0:05:02]} 10. Bf4 {[%emt 0:00:32]} Nh5 {[%emt 0:03:35]} 11. Be3 {[%emt 0:05:43]} c6 {[%emt 0:11:48]} 12. Qc2 {[%emt 0:05:58]} Re8 {[%emt 0:05:09]} 13. Rad1 {[%emt 0:03:17]} Nhf6 {[%emt 0:04:44]} 14. Bf4 {[%emt 0:02:36]} Bf8 {[%emt 0:13:32]} 15. Rfe1 {[%emt 0:01:32]} h6 {[%emt 0:03:14]} 16. Nh2 {[%emt 0:22:08]} b5 {[%emt 0:01:56]} 17. Nf1 {[%emt 0:06:27]} Qb6 {[%emt 0:04:10]} 18. e3 {[%emt 0:10:25]} Nh5 {[%emt 0:04:20]} 19. Bf3 {[%emt 0:00:36]} (19. Bh3 $11 Bc8 20. Ne2) 19... Nxf4 $15 {[%emt 0:00:11]} 20. gxf4 {[%emt 0:00:04]} Qd8 {[%emt 0:03:07]} 21. h5 $1 {[%emt 0:01:13]} Nb6 {[%emt 0:00:11][%cal Bd7b6,Bb6c4,Bc4a3][%mdl 32]} 22. Ng3 {[%emt 0:00:58]} Qf6 {[%emt 0:03:23]} 23. Nce2 {[%emt 0:06:12][%cal Bc3e2,Be2c1,Bc1d3][%mdl 32]} Nc4 {[%emt 0:03:59]} 24. Nc1 {[%emt 0:00:17]} a5 {[%emt 0:09:31]} 25. Nd3 {[%emt 0:00:59]} a4 {[%emt 0:00:17]} 26. Kg2 {[%emt 0:02:49]} Ra6 {[%emt 0:03:39]} 27. b3 {[%emt 0:06:49]} axb3 {[%emt 0:00:05]} 28. axb3 {[%emt 0:00:05]} Na3 {[%emt 0:00:59]} 29. Qd2 {[%emt 0:01:14]} Bc8 {[%emt 0:01:19][%cal Ob5b4]} 30. Rc1 {[%emt 0:02:32]} b4 {[%emt 0:02:39]} 31. Be2 {[%emt 0:14:48][%cal Bf3e2,Be2d3,Bd3g6,Bg6f5][%mdl 32]} Rb6 {[%emt 0:00:14] [#]} 32. Ne5 $1 {[%emt 0:00:25]} Qd6 {[%emt 0:03:52]} 33. Bd3 {[%emt 0:01:52] White is more active.} Ba6 $2 {[%emt 0:02:47] [#] Loses the game.} (33... Qf6 $16 {is a better defense.}) 34. Nxf7 $1 $18 {[%emt 0:00:28][%mdl 512] A dynamic duo of knights.} Qf6 {[%emt 0:01:06]} 35. Bg6 {[%emt 0:00:47]} Ra8 $2 {[%emt 0:00:54]} (35... Re7) 36. Ne5 {[%emt 0:00:53]} Ra7 {[%emt 0:00:04]} 37. Bf5 {[%emt 0:02:21]} Qd6 $2 {[%emt 0:01:16]} (37... Nb5 38. Bb1 (38. Nd7 Rxd7 39. Bxd7 Nc3 $18) 38... Na3) 38. Qd1 {[%emt 0:01:23] White is clearly winning.} Bb5 {[%emt 0:02:46]} 39. Qg4 {[%emt 0:00:30]} Re7 {[%emt 0:00:28] Against Be6+} 40. Bg6 {[%emt 0:01:47] Weighted Error Value: White=0.16 (very precise) /Black=0.43.  Loses game:     	---       	Black=1      Mistake:       	White=1     	Black=2      Inaccurate:     	White=4     	Black=7      OK:         	White=13    	Black=7      Best:        	White=1     	Black=1      Strong:       	White=2     	---        Brilliant:      	White=1     	---} 1-0

[Event "13th Palmanova Festival A 2024"]
[Site "Palmanova"]
[Date "2025.01.02"]
[Round "8.6"]
[White "Reza, Wojciech"]
[Black "Savanovic, Aleksandar"]
[Result "1-0"]
[ECO "C58"]
[WhiteElo "2227"]
[BlackElo "2354"]
[Annotator "TA"]
[PlyCount "83"]
[EventDate "2024.12.27"]
[EventCountry "ITA"]
[SourceTitle "playchess.com"]
[Source "ChessBase"]
[SourceQuality "1"]
[TimeControl "6000+30"]

{[%evp 14,83,17,20,17,31,39,-35,0,-4,0,0,-7,0,0,-31,-14,-23,-21,-40,-45,-46,-45,-44,-43,-49,-42,-48,-61,-33,-29,-23,0,-27,-26,-31,-22,-25,-15,-15,220,216,213,221,210,217,220,212,217,191,190,135,277,273,291,277,29986,413,453,127,129,123,116,126,366,366,364,354,565,570,29997,29998]} 1. e4 {[%emt 0:00:02]} e5 {[%emt 0:05:50]} 2. Nf3 {[%emt 0:00:37]} Nc6 {[%emt 0:00:08]} 3. Bc4 {[%emt 0:00:43]} Nf6 {[%emt 0:01:21]} 4. Ng5 {[%emt 0:01:31]} d5 {[%emt 0:00:13]} 5. exd5 {[%emt 0:00:06]} Na5 {[%emt 0:00:09]} 6. Bb5+ {[%emt 0:00:10]} c6 {[%emt 0:00:04]} 7. dxc6 {[%emt 0:00:06]} bxc6 {[%emt 0:00:05]} 8. Qf3 {[%emt 0:05:43]} Be7 {[%emt 0:00:10][%cal Oe8g8]} 9. Bd3 {[%emt 0:00:26]} O-O {[%emt 0:06:45]} 10. Bf5 {[%emt 0:08:39]} (10. Nc3 $14) 10... Bxf5 {[%emt 0:27:22]} 11. Qxf5 {[%emt 0:00:15][%cal Od2d3]} g6 {[%emt 0:00:02]} 12. Qf3 {[%emt 0:02:26]} Nd5 {[%emt 0:03:28]} 13. Nh3 {[%emt 0:00:53]} f5 {[%emt 0:02:01]} 14. d4 {[%emt 0:24:21]} exd4 {[%emt 0:09:56] And now ...Bb4+ would win.} 15. O-O {[%emt 0:09:35]} Bf6 {[%emt 0:01:35]} 16. Nd2 {[%emt 0:08:21] Prevents Nc4} Re8 {[%emt 0:07:39]} 17. Nb3 {[%emt 0:10:11]} Nc4 {[%emt 0:02:49]} 18. Qd3 {[%emt 0:00:34][%csl LRc4,LRd4]} Ne5 {[%emt 0:02:01]} 19. Qd1 $1 {[%emt 0:01:33]} Qb6 {[%emt 0:01:09]} 20. Nf4 $1 {[%emt 0:07:52]} Nxf4 {[%emt 0:01:10]} 21. Bxf4 {[%emt 0:00:10]} Nc4 {[%emt 0:00:05]} 22. Rb1 {[%emt 0:01:09]} Re4 {[%emt 0:00:35]} 23. Nd2 {[%emt 0:02:14]} Nxd2 {[%emt 0:00:15]} 24. Bxd2 {[%emt 0:01:18]} Qa6 {[%emt 0:00:51]} 25. b3 {[%emt 0:11:17]} Rae8 {[%emt 0:02:46][%cal Oe4e2]} 26. Qf3 {[%emt 0:02:11]} Qxa2 $2 {[%emt 0:11:00]} (26... c5 $11) 27. Qd3 $18 {[%emt 0:00:24] And now Ra1 would win.} Qa3 {[%emt 0:00:49]} 28. Qc4+ {[%emt 0:02:25]} Kh8 {[%emt 0:01:25]} 29. Bb4 $1 {[%emt 0:01:48]} (29. Qxc6 R4e6 30. Qf3 a6 $11) 29... Qa2 {[%emt 0:00:05][%cal Od4d3]} 30. Ra1 $1 {[%emt 0:01:49]} (30. Qxc6 R4e6 31. Qc7 Qa6 $11) 30... Qb2 {[%emt 0:00:06][%cal Od4d3]} 31. Rxa7 {[%emt 0:00:35]} R4e6 {[%emt 0:03:51]} 32. Qd3 {[%emt 0:01:57]} ({Better is} 32. Ra6 $18 d3 33. Rxc6 (33. Qxd3 Qd4 $18) 33... Rxc6 34. Qxc6) 32... Re2 {[%emt 0:01:52] [#]} (32... c5 $16 33. Bd2 (33. Bxc5 Re1 $16) 33... R6e7) 33. Bd2 $1 {[%emt 0:01:09]} c5 {[%emt 0:03:30]} 34. g3 {[%emt 0:02:20]} Bg7 $2 {[%emt 0:01:45] Wards off Bh6} (34... R2e6 $18 35. Kg2 R6e7) 35. Raa1 {[%emt 0:02:07]} (35. Qxe2 $142 Rb8 36. Rxg7 d3 37. Qxd3 (37. cxd3 Qxg7 38. Bf4 Qf8 $18) 37... Qxg7 38. Bc3 Kg8 39. Bxg7 Kxg7 40. Qc3+ Kh6 41. Qe3+ (41. Qxc5 Re8 $18) 41... g5 42. Qxc5 (42. Qe6+ Kh5 43. Qf7+ Kh6 44. f4 gxf4 45. Qf6+ Kh5 46. Rxf4 Rb4 47. g4+ fxg4 48. Rf5#)) 35... c4 {[%emt 0:00:07] [#]} 36. bxc4 $2 $40 {[%emt 0:00:05][%mdl 128] White is out for blood.} (36. Qxc4 $2 Rxd2 37. Qc6 Rf8 $19 (37... Rxc2 38. Qxe8+)) (36. Qxe2 $1 $18 Rxe2 37. Ra8+ Bf8 38. Bh6 (38. Rxf8+ $2 Kg7 $19)) 36... Qb7 $16 {[%emt 0:00:40]} 37. Rfe1 {[%emt 0:00:45]} R2e4 {[%emt 0:00:07]} 38. f3 {[%emt 0:00:35]} Re3 $2 {[%emt 0:02:27]} 39. Bxe3 $18 {[%emt 0:00:42]} dxe3 {[%emt 0:00:16]} 40. Ra3 {[%emt 0:00:38]} (40. Rxe3 Qb6 41. Rd1 Bh6 (41... Qxe3+ 42. Qxe3 Rxe3 43. Rd8+ $11) 42. Qc3+ Kg8 $15) 40... Qxf3 {[%emt 0:00:28]} (40... Bf8 {was worth a try.} 41. Qd4+ (41. Rxe3 $2 {too greedy.} Bc5 $19) 41... Qg7 42. Qxg7+ (42. Raxe3 $2 Qxd4 43. c3 Qb6 $19) 42... Kxg7) 41. Rxe3 {[%emt 0:00:38]} Rxe3 {[%emt 0:02:35]} 42. Qd8+ {[%emt 0:00:17]} 1-0